[Event "*** Titled Tuesday Blitz"]
[Site "Chess.com"]
[Date "2021.03.02"]
[Round "4"]
[White "jefferyx"]
[Black "Arseniy_Nesterov"]
[Result "1/2-1/2"]
[WhiteElo "3021"]
[BlackElo "2796"]
[TimeControl "180+1"]
[EndTime "10:37:57 PST"]
[Termination "Game drawn by agreement"]

1. e4 {[%clk 0:03:00.9]} 1... e5 {[%clk 0:02:59.6]} 2. Nf3 {[%clk 0:03:01]} 2...
Nc6 {[%clk 0:02:59.5]} 3. Nc3 {[%clk 0:03:01.9]} 3... Nf6 {[%clk 0:02:59.4]} 4.
d4 {[%clk 0:03:02.5]} 4... Bb4 {[%clk 0:02:58.9]} 5. Nxe5 {[%clk 0:03:00.4]}
5... Qe7 {[%clk 0:02:59.1]} 6. Qd3 {[%clk 0:02:58.8]} 6... Nxe5 {[%clk
0:02:58.9]} 7. dxe5 {[%clk 0:02:59.7]} 7... Qxe5 {[%clk 0:02:59.5]} 8. Bd2
{[%clk 0:02:58.8]} 8... O-O {[%clk 0:02:57.1]} 9. O-O-O {[%clk 0:02:57.4]} 9...
d6 {[%clk 0:02:52.7]} 10. f3 {[%clk 0:02:55.4]} 10... Be6 {[%clk 0:02:50.1]} 11.
a3 {[%clk 0:02:53.4]} 11... Bc5 {[%clk 0:02:31]} 12. g4 {[%clk 0:02:53.1]} 12...
Qd4 {[%clk 0:02:00.4]} 13. Qe2 {[%clk 0:02:52.4]} 13... Qf2 {[%clk 0:01:58.5]}
14. Qxf2 {[%clk 0:02:48.8]} 14... Bxf2 {[%clk 0:01:57.9]} 15. h3 {[%clk
0:02:40.8]} 15... Rfe8 {[%clk 0:01:45.7]} 16. f4 {[%clk 0:02:33.9]} 16... Bd7
{[%clk 0:01:37.6]} 17. Bd3 {[%clk 0:02:16]} 17... Bc6 {[%clk 0:01:36.5]} 18.
Rhf1 {[%clk 0:02:16.5]} 18... Bd4 {[%clk 0:01:28.9]} 19. Ne2 {[%clk 0:01:56.9]}
19... Bb6 {[%clk 0:01:25.6]} 20. e5 {[%clk 0:01:57.5]} 20... dxe5 {[%clk
0:01:24.6]} 21. fxe5 {[%clk 0:01:58.4]} 21... Rxe5 {[%clk 0:01:21.1]} 22. Bc3
{[%clk 0:01:58.5]} 22... Re3 {[%clk 0:00:55.9]} 23. Bxf6 {[%clk 0:01:56.1]}
23... gxf6 {[%clk 0:00:55.9]} 24. Nf4 {[%clk 0:01:44.9]} 24... Bf3 {[%clk
0:00:42.6]} 25. Rde1 {[%clk 0:01:32]} 25... Rae8 {[%clk 0:00:39.6]} 26. Rxe3
{[%clk 0:01:32.6]} 26... Bxe3+ {[%clk 0:00:38.2]} 27. Kb1 {[%clk 0:01:33]} 27...
Bxf4 {[%clk 0:00:31]} 28. Rxf3 {[%clk 0:01:33.4]} 28... Re1+ {[%clk 0:00:31.1]}
29. Ka2 {[%clk 0:01:33.5]} 29... Be5 {[%clk 0:00:31.4]} 30. Bf5 {[%clk
0:01:28.3]} 30... Rd1 {[%clk 0:00:23.6]} 31. Rb3 {[%clk 0:01:23.7]} 31... b6
{[%clk 0:00:23.3]} 32. Rd3 {[%clk 0:01:22]} 32... Rxd3 {[%clk 0:00:22.9]}
1/2-1/2

[Event "*** Titled Tuesday Blitz"]
[Site "Chess.com"]
[Date "2021.03.02"]
[Round "4"]
[White "Zkid"]
[Black "BigAl"]
[Result "1-0"]
[WhiteElo "2820"]
[BlackElo "2531"]
[TimeControl "180+1"]
[EndTime "10:37:59 PST"]
[Termination "Zkid won by resignation"]

1. e4 {[%clk 0:03:00.9]} 1... c6 {[%clk 0:03:00.1]} 2. d4 {[%clk 0:02:58.9]}
2... d5 {[%clk 0:03:00.5]} 3. exd5 {[%clk 0:02:59.8]} 3... cxd5 {[%clk
0:03:00.2]} 4. Bd3 {[%clk 0:03:00.5]} 4... Nc6 {[%clk 0:03:00.5]} 5. c3 {[%clk
0:03:01]} 5... Qc7 {[%clk 0:03:01.1]} 6. Ne2 {[%clk 0:03:00.9]} 6... e5 {[%clk
0:02:33.8]} 7. dxe5 {[%clk 0:02:57.9]} 7... Nxe5 {[%clk 0:02:34]} 8. Bb5+ {[%clk
0:02:48.9]} 8... Bd7 {[%clk 0:02:34.3]} 9. Bxd7+ {[%clk 0:02:37.1]} 9... Qxd7
{[%clk 0:02:34.2]} 10. O-O {[%clk 0:02:36.7]} 10... Nf6 {[%clk 0:02:33]} 11. Re1
{[%clk 0:02:30.2]} 11... O-O-O {[%clk 0:02:28.6]} 12. Bf4 {[%clk 0:02:27.3]}
12... Bd6 {[%clk 0:02:16.3]} 13. Nd4 {[%clk 0:02:05.2]} 13... Rhe8 {[%clk
0:02:10.9]} 14. Nd2 {[%clk 0:02:00.5]} 14... Nd3 {[%clk 0:01:54.7]} 15. Rxe8
{[%clk 0:01:59.3]} 15... Rxe8 {[%clk 0:01:50.3]} 16. Bxd6 {[%clk 0:01:59]} 16...
Qxd6 {[%clk 0:01:50.8]} 17. Qf3 {[%clk 0:01:40.1]} 17... Nc5 {[%clk 0:01:25.7]}
18. h3 {[%clk 0:01:30.7]} 18... a6 {[%clk 0:01:25.4]} 19. Nf5 {[%clk 0:01:28.9]}
19... Qe5 {[%clk 0:01:20.1]} 20. Nxg7 {[%clk 0:01:27.3]} 20... Rg8 {[%clk
0:01:14.7]} 21. Qf5+ {[%clk 0:01:26.7]} 21... Qxf5 {[%clk 0:01:15.1]} 22. Nxf5
{[%clk 0:01:27.6]} 22... Nd3 {[%clk 0:01:13.3]} 23. Ne7+ {[%clk 0:01:27.3]}
23... Kd7 {[%clk 0:01:12.3]} 24. Nxg8 {[%clk 0:01:28.2]} 24... Nxg8 {[%clk
0:01:12.9]} 25. Nf3 {[%clk 0:01:24.9]} 25... Kd6 {[%clk 0:01:12.6]} 26. Rd1
{[%clk 0:01:23.3]} 26... Nxb2 {[%clk 0:01:12.6]} 27. Rb1 {[%clk 0:01:23.6]}
27... Na4 {[%clk 0:01:10.9]} 28. Rxb7 {[%clk 0:01:24.2]} 28... Nxc3 {[%clk
0:01:10.3]} 29. Rxf7 {[%clk 0:01:24.8]} 29... Ne7 {[%clk 0:01:08.4]} 30. Rxh7
{[%clk 0:01:23.8]} 30... Nc6 {[%clk 0:01:08.3]} 31. a3 {[%clk 0:01:19.6]} 31...
d4 {[%clk 0:01:05.9]} 32. Nxd4 {[%clk 0:01:15.9]} 32... Nxd4 {[%clk 0:01:03.2]}
33. Ra7 {[%clk 0:01:16.4]} 33... Ke5 {[%clk 0:00:55]} 34. Rxa6 {[%clk
0:01:14.4]} 34... Nde2+ {[%clk 0:00:55.2]} 35. Kh2 {[%clk 0:01:14.2]} 35... Nd1
{[%clk 0:00:55.3]} 36. Ra8 {[%clk 0:01:11.3]} 36... Nd4 {[%clk 0:00:53.9]} 37.
Re8+ {[%clk 0:01:09.6]} 37... Kd5 {[%clk 0:00:54.1]} 38. f4 {[%clk 0:01:08.1]}
38... Ne6 {[%clk 0:00:51.6]} 39. f5 {[%clk 0:01:07.5]} 39... Ng7 {[%clk
0:00:51.4]} 40. f6 {[%clk 0:01:05.2]} 1-0

[Event "*** Titled Tuesday Blitz"]
[Site "Chess.com"]
[Date "2021.03.02"]
[Round "4"]
[White "ChainsOfFantasia"]
[Black "j_coca"]
[Result "0-1"]
[WhiteElo "2447"]
[BlackElo "2318"]
[TimeControl "180+1"]
[EndTime "10:37:59 PST"]
[Termination "j_coca won by checkmate"]

1. d4 {[%clk 0:03:00.9]} 1... f5 {[%clk 0:02:58.3]} 2. Nf3 {[%clk 0:03:01.4]}
2... Nf6 {[%clk 0:02:57.9]} 3. g3 {[%clk 0:03:00.8]} 3... g6 {[%clk 0:02:57.7]}
4. Bg2 {[%clk 0:03:01]} 4... Bg7 {[%clk 0:02:58.1]} 5. O-O {[%clk 0:03:01.4]}
5... O-O {[%clk 0:02:58.4]} 6. Nbd2 {[%clk 0:03:00.3]} 6... d6 {[%clk 0:02:58]}
7. Re1 {[%clk 0:03:00.3]} 7... Nc6 {[%clk 0:02:58.4]} 8. e4 {[%clk 0:03:00.4]}
8... e6 {[%clk 0:02:57.5]} 9. c3 {[%clk 0:02:46.9]} 9... Kh8 {[%clk 0:02:56.6]}
10. e5 {[%clk 0:02:19.7]} 10... dxe5 {[%clk 0:02:55]} 11. dxe5 {[%clk
0:02:17.8]} 11... Ng4 {[%clk 0:02:55]} 12. Nc4 {[%clk 0:02:05.6]} 12... Qxd1
{[%clk 0:02:52.6]} 13. Rxd1 {[%clk 0:02:06.5]} 13... Ngxe5 {[%clk 0:02:51.3]}
14. Ncxe5 {[%clk 0:01:48.5]} 14... Nxe5 {[%clk 0:02:42.9]} 15. Nd4 {[%clk
0:01:40.3]} 15... c6 {[%clk 0:02:38]} 16. Bg5 {[%clk 0:01:30.5]} 16... Nf7
{[%clk 0:02:33.5]} 17. Be3 {[%clk 0:01:25.2]} 17... e5 {[%clk 0:02:33.4]} 18.
Nb3 {[%clk 0:01:24]} 18... Re8 {[%clk 0:02:31]} 19. a4 {[%clk 0:01:18.5]} 19...
g5 {[%clk 0:02:30.7]} 20. a5 {[%clk 0:01:16.6]} 20... f4 {[%clk 0:02:28.5]} 21.
Bc5 {[%clk 0:01:15.5]} 21... a6 {[%clk 0:02:26.1]} 22. Nd2 {[%clk 0:01:14.2]}
22... Bf5 {[%clk 0:02:25.1]} 23. Nc4 {[%clk 0:01:13.1]} 23... h6 {[%clk
0:02:21.1]} 24. Rd2 {[%clk 0:01:07.6]} 24... Rad8 {[%clk 0:02:20.2]} 25. Rad1
{[%clk 0:01:07.9]} 25... Rxd2 {[%clk 0:02:19.4]} 26. Rxd2 {[%clk 0:01:08.8]}
26... e4 {[%clk 0:02:09.3]} 27. gxf4 {[%clk 0:00:44.8]} 27... gxf4 {[%clk
0:02:08.2]} 28. Nd6 {[%clk 0:00:45.3]} 28... Nxd6 {[%clk 0:02:07.4]} 29. Bxd6
{[%clk 0:00:46.2]} 29... Be5 {[%clk 0:02:06]} 30. Bxe5+ {[%clk 0:00:43.5]} 30...
Rxe5 {[%clk 0:02:06.9]} 31. Bf1 {[%clk 0:00:39.5]} 31... Rxa5 {[%clk 0:02:05.3]}
32. Rd8+ {[%clk 0:00:36.7]} 32... Kg7 {[%clk 0:02:04.6]} 33. Rb8 {[%clk
0:00:37.6]} 33... Ra1 {[%clk 0:02:00.6]} 34. Rxb7+ {[%clk 0:00:37.4]} 34... Kf6
{[%clk 0:02:01]} 35. Kg2 {[%clk 0:00:23.1]} 35... f3+ {[%clk 0:02:00.5]} 36. Kg3
{[%clk 0:00:23.6]} 36... Rxf1 {[%clk 0:01:59.7]} 37. Rb6 {[%clk 0:00:24.2]}
37... Ke5 {[%clk 0:01:53.8]} 38. Rxc6 {[%clk 0:00:22]} 38... Rg1+ {[%clk
0:01:53.7]} 39. Kh4 {[%clk 0:00:22.4]} 39... Rg2 {[%clk 0:01:51.3]} 40. Rxa6
{[%clk 0:00:20.4]} 40... Rxh2+ {[%clk 0:01:47.3]} 41. Kg3 {[%clk 0:00:20.1]}
41... Rh3# {[%clk 0:01:47.2]} 0-1

[Event "*** Titled Tuesday Blitz"]
[Site "Chess.com"]
[Date "2021.03.02"]
[Round "4"]
[White "Rap_woyska"]
[Black "FeketeBarika"]
[Result "1-0"]
[WhiteElo "2563"]
[BlackElo "2241"]
[TimeControl "180+1"]
[EndTime "10:38:03 PST"]
[Termination "Rap_woyska won by resignation"]

1. Nf3 {[%clk 0:03:00.9]} 1... e6 {[%clk 0:03:00.9]} 2. g3 {[%clk 0:03:00.5]}
2... d5 {[%clk 0:02:59.5]} 3. Bg2 {[%clk 0:03:01.4]} 3... Nf6 {[%clk 0:02:59.7]}
4. O-O {[%clk 0:03:02.3]} 4... Be7 {[%clk 0:03:00.4]} 5. c4 {[%clk 0:03:02.9]}
5... O-O {[%clk 0:03:01.3]} 6. d4 {[%clk 0:03:03.4]} 6... dxc4 {[%clk
0:02:57.6]} 7. Qc2 {[%clk 0:03:03.5]} 7... a6 {[%clk 0:02:53.8]} 8. a4 {[%clk
0:03:03]} 8... Bd7 {[%clk 0:02:52.6]} 9. Qxc4 {[%clk 0:03:02.8]} 9... b5 {[%clk
0:02:50.9]} 10. Qc2 {[%clk 0:02:57.2]} 10... b4 {[%clk 0:02:44.9]} 11. Nbd2
{[%clk 0:02:51.2]} 11... Ra7 {[%clk 0:02:39.6]} 12. Nb3 {[%clk 0:02:43.7]} 12...
a5 {[%clk 0:02:36.4]} 13. e4 {[%clk 0:02:34.9]} 13... Qc8 {[%clk 0:02:23.2]} 14.
Ne5 {[%clk 0:02:34.3]} 14... Rd8 {[%clk 0:02:19.6]} 15. Be3 {[%clk 0:02:30.4]}
15... Be8 {[%clk 0:02:15.2]} 16. Rfc1 {[%clk 0:02:29.6]} 16... Bf8 {[%clk
0:01:50.3]} 17. g4 {[%clk 0:01:40.4]} 17... Nfd7 {[%clk 0:01:48.8]} 18. Nc4
{[%clk 0:01:40.4]} 18... c5 {[%clk 0:01:41.4]} 19. Ncxa5 {[%clk 0:01:35]} 19...
Na6 {[%clk 0:01:32.9]} 20. e5 {[%clk 0:01:24.6]} 20... Rc7 {[%clk 0:01:30.6]}
21. Qe2 {[%clk 0:01:11.8]} 21... cxd4 {[%clk 0:01:05.2]} 22. Rxc7 {[%clk
0:01:10.8]} 22... Qxc7 {[%clk 0:01:02.4]} 23. Rc1 {[%clk 0:01:10.2]} 23... Qxe5
{[%clk 0:01:01.3]} 24. Nc6 {[%clk 0:01:07.6]} 24... Qf6 {[%clk 0:00:58.5]} 25.
Bxd4 {[%clk 0:01:05]} 25... e5 {[%clk 0:00:57.2]} 26. Nxd8 {[%clk 0:00:56.5]}
26... Qxd8 {[%clk 0:00:54.4]} 27. Be3 {[%clk 0:00:50.7]} 27... Qf6 {[%clk
0:00:47.9]} 28. Rc6 {[%clk 0:00:48.3]} 1-0

[Event "*** Titled Tuesday Blitz"]
[Site "Chess.com"]
[Date "2021.03.02"]
[Round "4"]
[White "rquery98"]
[Black "AlexeiShirov"]
[Result "0-1"]
[WhiteElo "2628"]
[BlackElo "2827"]
[TimeControl "180+1"]
[EndTime "10:38:04 PST"]
[Termination "AlexeiShirov won by resignation"]

1. Nf3 {[%clk 0:03:00.9]} 1... d5 {[%clk 0:02:59.6]} 2. g3 {[%clk 0:03:01.3]}
2... Nf6 {[%clk 0:02:58.2]} 3. Bg2 {[%clk 0:03:01.8]} 3... g6 {[%clk 0:02:58.3]}
4. c4 {[%clk 0:03:01.9]} 4... c6 {[%clk 0:02:57.5]} 5. b3 {[%clk 0:03:02.5]}
5... Bg7 {[%clk 0:02:56]} 6. Bb2 {[%clk 0:03:03.1]} 6... O-O {[%clk 0:02:55.6]}
7. O-O {[%clk 0:03:02.8]} 7... Bf5 {[%clk 0:02:50.2]} 8. d3 {[%clk 0:02:58.5]}
8... Nbd7 {[%clk 0:02:48]} 9. Nbd2 {[%clk 0:02:55.9]} 9... a5 {[%clk 0:02:47]}
10. a3 {[%clk 0:02:54.7]} 10... Re8 {[%clk 0:02:45.1]} 11. Rc1 {[%clk
0:02:33.2]} 11... e5 {[%clk 0:02:43.1]} 12. b4 {[%clk 0:02:06.2]} 12... axb4
{[%clk 0:02:41.5]} 13. axb4 {[%clk 0:02:07.1]} 13... e4 {[%clk 0:02:38.8]} 14.
dxe4 {[%clk 0:02:04.4]} 14... dxe4 {[%clk 0:02:35.3]} 15. Nd4 {[%clk 0:02:03.9]}
15... e3 {[%clk 0:02:30.9]} 16. fxe3 {[%clk 0:01:49.2]} 16... Ng4 {[%clk
0:02:29.7]} 17. Qb3 {[%clk 0:01:43.7]} 17... Rxe3 {[%clk 0:02:23.6]} 18. Qd1
{[%clk 0:01:44.1]} 18... Ra2 {[%clk 0:02:11.1]} 19. Nxf5 {[%clk 0:01:20.4]}
19... Rxb2 {[%clk 0:02:10.4]} 20. Nxe3 {[%clk 0:01:14.6]} 20... Nxe3 {[%clk
0:02:09.8]} 21. Qe1 {[%clk 0:01:15.5]} 21... Ne5 {[%clk 0:01:53]} 22. Nf3 {[%clk
0:00:47.7]} 22... Nxf1 {[%clk 0:01:27.2]} 23. Qxf1 {[%clk 0:00:46.9]} 23... Ng4
{[%clk 0:01:25.8]} 24. Qd1 {[%clk 0:00:23.9]} 24... Qe7 {[%clk 0:01:25]} 25. Qd3
{[%clk 0:00:15.7]} 25... Qxb4 {[%clk 0:01:20]} 26. h3 {[%clk 0:00:13.6]} 26...
Qc5+ {[%clk 0:01:17]} 27. e3 {[%clk 0:00:14.3]} 27... Nxe3 {[%clk 0:01:15.5]}
28. Qd8+ {[%clk 0:00:12.5]} 28... Bf8 {[%clk 0:01:14.6]} 0-1

[Event "*** Titled Tuesday Blitz"]
[Site "Chess.com"]
[Date "2021.03.02"]
[Round "4"]
[White "Kaua18"]
[Black "Gerodot71"]
[Result "0-1"]
[WhiteElo "2340"]
[BlackElo "2550"]
[TimeControl "180+1"]
[EndTime "10:38:07 PST"]
[Termination "Gerodot71 won on time"]

1. e4 {[%clk 0:02:35.2]} 1... e5 {[%clk 0:02:52.9]} 2. Nf3 {[%clk 0:02:31.3]}
2... Nc6 {[%clk 0:02:53.4]} 3. Bb5 {[%clk 0:02:30.6]} 3... a6 {[%clk 0:02:51.8]}
4. Ba4 {[%clk 0:02:30.3]} 4... Nf6 {[%clk 0:02:52.3]} 5. O-O {[%clk 0:02:30.1]}
5... Be7 {[%clk 0:02:51.3]} 6. Re1 {[%clk 0:02:29.6]} 6... b5 {[%clk 0:02:51.8]}
7. Bb3 {[%clk 0:02:27]} 7... d6 {[%clk 0:02:51.8]} 8. c3 {[%clk 0:02:27]} 8...
O-O {[%clk 0:02:47.7]} 9. h3 {[%clk 0:02:26.8]} 9... Nb8 {[%clk 0:02:48.2]} 10.
d4 {[%clk 0:02:26.7]} 10... Nbd7 {[%clk 0:02:48.7]} 11. c4 {[%clk 0:02:25.3]}
11... c6 {[%clk 0:02:42.8]} 12. Nc3 {[%clk 0:02:23.9]} 12... Bb7 {[%clk
0:02:42.6]} 13. a3 {[%clk 0:02:19.8]} 13... Qc7 {[%clk 0:02:42.2]} 14. Nh4
{[%clk 0:02:01.1]} 14... Rfe8 {[%clk 0:02:39.3]} 15. Nf5 {[%clk 0:01:59.8]}
15... Bf8 {[%clk 0:02:39.2]} 16. cxb5 {[%clk 0:01:49.9]} 16... axb5 {[%clk
0:02:31.7]} 17. Bxf7+ {[%clk 0:01:49]} 17... Kxf7 {[%clk 0:02:25.4]} 18. Qb3+
{[%clk 0:01:47]} 18... d5 {[%clk 0:02:23.3]} 19. exd5 {[%clk 0:01:37.4]} 19...
cxd5 {[%clk 0:02:21.5]} 20. dxe5 {[%clk 0:01:03]} 20... Rxe5 {[%clk 0:02:10.3]}
21. Rxe5 {[%clk 0:00:24.7]} 21... Qxe5 {[%clk 0:02:11.2]} 22. Ne3 {[%clk
0:00:18.7]} 22... Nc5 {[%clk 0:02:06.5]} 23. Qxb5 {[%clk 0:00:16.6]} 23... d4
{[%clk 0:02:06.8]} 24. Qc4+ {[%clk 0:00:13]} 24... Kg6 {[%clk 0:02:03.3]} 25. b4
{[%clk 0:00:09.1]} 25... dxe3 {[%clk 0:01:45.3]} 26. bxc5 {[%clk 0:00:08.9]}
26... exf2+ {[%clk 0:01:45.7]} 27. Kxf2 {[%clk 0:00:09.8]} 27... Qxc3 {[%clk
0:01:42.5]} 28. Qxc3 {[%clk 0:00:05.9]} 28... Ne4+ {[%clk 0:01:42.1]} 29. Ke2
{[%clk 0:00:03]} 29... Nxc3+ {[%clk 0:01:42.3]} 30. Kd3 {[%clk 0:00:03.9]} 30...
Na4 {[%clk 0:01:41.8]} 31. Rb1 {[%clk 0:00:02.6]} 31... Nxc5+ {[%clk 0:01:41.6]}
0-1

[Event "*** Titled Tuesday Blitz"]
[Site "Chess.com"]
[Date "2021.03.02"]
[Round "4"]
[White "KruHor"]
[Black "MendozaDavid2000"]
[Result "1-0"]
[WhiteElo "2528"]
[BlackElo "2339"]
[TimeControl "180+1"]
[EndTime "10:38:08 PST"]
[Termination "KruHor won on time"]

1. e4 {[%clk 0:02:59.4]} 1... c5 {[%clk 0:02:58.1]} 2. Nf3 {[%clk 0:02:58.8]}
2... d6 {[%clk 0:02:58]} 3. d4 {[%clk 0:02:58]} 3... cxd4 {[%clk 0:02:58.5]} 4.
Nxd4 {[%clk 0:02:57.9]} 4... Nf6 {[%clk 0:02:59]} 5. Nc3 {[%clk 0:02:57.5]} 5...
a6 {[%clk 0:02:59.3]} 6. Qe2 {[%clk 0:02:54.5]} 6... e6 {[%clk 0:02:50.5]} 7. g4
{[%clk 0:02:52.8]} 7... Qc7 {[%clk 0:02:47.3]} 8. g5 {[%clk 0:02:51.8]} 8...
Nfd7 {[%clk 0:02:47.7]} 9. h4 {[%clk 0:02:51]} 9... Nc6 {[%clk 0:02:47.6]} 10.
Nb3 {[%clk 0:02:50]} 10... Nc5 {[%clk 0:02:33.2]} 11. Be3 {[%clk 0:02:41.5]}
11... Nxb3 {[%clk 0:02:29.1]} 12. axb3 {[%clk 0:02:40.9]} 12... Bd7 {[%clk
0:02:21.8]} 13. f4 {[%clk 0:02:34.7]} 13... g6 {[%clk 0:02:09.7]} 14. Qd2 {[%clk
0:02:18.8]} 14... O-O-O {[%clk 0:02:01]} 15. Na4 {[%clk 0:02:13.2]} 15... Bg7
{[%clk 0:01:14.5]} 16. Bb6 {[%clk 0:02:07]} 16... Qb8 {[%clk 0:01:15]} 17. Nc3
{[%clk 0:02:05.7]} 17... Qa8 {[%clk 0:00:08.8]} 18. Nb5 {[%clk 0:01:58.3]} 18...
Be8 {[%clk 0:00:03.9]} 19. Nxd6+ {[%clk 0:01:02]} 1-0

[Event "*** Titled Tuesday Blitz"]
[Site "Chess.com"]
[Date "2021.03.02"]
[Round "4"]
[White "Bigfish1995"]
[Black "tapu2"]
[Result "1-0"]
[WhiteElo "3123"]
[BlackElo "2553"]
[TimeControl "180+1"]
[EndTime "10:38:09 PST"]
[Termination "Bigfish1995 won by resignation"]

1. e4 {[%clk 0:02:54.2]} 1... Nf6 {[%clk 0:02:54.1]} 2. e5 {[%clk 0:02:53.1]}
2... Nd5 {[%clk 0:02:50.6]} 3. d4 {[%clk 0:02:53.7]} 3... d6 {[%clk 0:02:48.3]}
4. c4 {[%clk 0:02:53.8]} 4... Nb6 {[%clk 0:02:47.8]} 5. f4 {[%clk 0:02:53.9]}
5... g6 {[%clk 0:02:43.9]} 6. Nc3 {[%clk 0:02:52.5]} 6... Bg7 {[%clk 0:02:37.5]}
7. Be3 {[%clk 0:02:51.3]} 7... O-O {[%clk 0:02:23.9]} 8. c5 {[%clk 0:02:51.5]}
8... N6d7 {[%clk 0:02:21.3]} 9. Nf3 {[%clk 0:02:50.8]} 9... b6 {[%clk
0:02:10.5]} 10. Bc4 {[%clk 0:02:48.1]} 10... bxc5 {[%clk 0:01:37.3]} 11. dxc5
{[%clk 0:02:45.8]} 11... Nxc5 {[%clk 0:01:35.1]} 12. Bxc5 {[%clk 0:02:40.9]}
12... dxc5 {[%clk 0:01:35.4]} 13. Qe2 {[%clk 0:02:25.1]} 13... Nc6 {[%clk
0:01:10.6]} 14. Rd1 {[%clk 0:02:24.3]} 14... Nd4 {[%clk 0:01:05.3]} 15. Nxd4
{[%clk 0:02:20.1]} 15... cxd4 {[%clk 0:01:00]} 16. Qe4 {[%clk 0:02:19.1]} 16...
Bf5 {[%clk 0:00:54.3]} 17. Qxd4 {[%clk 0:02:19.3]} 17... Qb8 {[%clk 0:00:51.9]}
18. Nd5 {[%clk 0:02:18.4]} 18... Kh8 {[%clk 0:00:44.9]} 19. O-O {[%clk
0:02:16.8]} 19... Rd8 {[%clk 0:00:39.2]} 20. Qc3 {[%clk 0:02:15.7]} 20... Bg4
{[%clk 0:00:38.1]} 21. Rd2 {[%clk 0:02:14.6]} 21... c6 {[%clk 0:00:35]} 22. Ne3
{[%clk 0:02:13.8]} 22... Qb6 {[%clk 0:00:30.7]} 23. Rff2 {[%clk 0:02:03.3]}
23... f6 {[%clk 0:00:28.1]} 24. Nxg4 {[%clk 0:02:01.8]} 24... h5 {[%clk
0:00:21.2]} 25. Ne3 {[%clk 0:02:01.1]} 25... fxe5 {[%clk 0:00:21.3]} 26. fxe5
{[%clk 0:02:02]} 26... a5 {[%clk 0:00:16.4]} 27. h4 {[%clk 0:01:59.8]} 27... Kh7
{[%clk 0:00:15.6]} 28. Kh2 {[%clk 0:01:58]} 28... Qc5 {[%clk 0:00:15.8]} 29. g3
{[%clk 0:01:56]} 29... Kh8 {[%clk 0:00:14.5]} 30. Rxd8+ {[%clk 0:01:51.9]} 30...
Rxd8 {[%clk 0:00:13.8]} 31. Bf7 {[%clk 0:01:52.2]} 31... Qxc3 {[%clk 0:00:11.5]}
32. bxc3 {[%clk 0:01:52.1]} 32... Bxe5 {[%clk 0:00:12.2]} 33. Nc4 {[%clk
0:01:50.6]} 33... Bc7 {[%clk 0:00:11.3]} 34. Re2 {[%clk 0:01:47.6]} 34... e5
{[%clk 0:00:08.9]} 35. Bxg6 {[%clk 0:01:47.2]} 35... Rg8 {[%clk 0:00:07.9]} 36.
Be4 {[%clk 0:01:47.5]} 1-0

[Event "*** Titled Tuesday Blitz"]
[Site "Chess.com"]
[Date "2021.03.02"]
[Round "4"]
[White "ApoIogiA"]
[Black "LileKoridze"]
[Result "0-1"]
[WhiteElo "2209"]
[BlackElo "2411"]
[TimeControl "180+1"]
[EndTime "10:38:10 PST"]
[Termination "LileKoridze won by resignation"]

1. d4 {[%clk 0:03:00.9]} 1... Nf6 {[%clk 0:02:58.5]} 2. c4 {[%clk 0:02:57.2]}
2... e6 {[%clk 0:02:58.4]} 3. Nc3 {[%clk 0:02:56.3]} 3... Bb4 {[%clk 0:02:58]}
4. f3 {[%clk 0:02:56.8]} 4... d5 {[%clk 0:02:55.5]} 5. cxd5 {[%clk 0:02:52.3]}
5... exd5 {[%clk 0:02:55]} 6. Bg5 {[%clk 0:02:44.9]} 6... O-O {[%clk 0:02:54.4]}
7. e3 {[%clk 0:02:44]} 7... h6 {[%clk 0:02:53.1]} 8. Bh4 {[%clk 0:02:43.6]} 8...
Be7 {[%clk 0:02:52.6]} 9. Bd3 {[%clk 0:02:41.5]} 9... c6 {[%clk 0:02:52.4]} 10.
Nge2 {[%clk 0:02:38.2]} 10... Re8 {[%clk 0:02:38.7]} 11. O-O {[%clk 0:02:34.4]}
11... Nbd7 {[%clk 0:02:38.3]} 12. e4 {[%clk 0:02:32.2]} 12... dxe4 {[%clk
0:02:36.8]} 13. fxe4 {[%clk 0:02:33.1]} 13... Nf8 {[%clk 0:02:37.3]} 14. Qd2
{[%clk 0:01:59.2]} 14... Nxe4 {[%clk 0:02:26.7]} 15. Qf4 {[%clk 0:01:00.1]}
15... Nxc3 {[%clk 0:02:22.4]} 16. Qxf7+ {[%clk 0:00:58.3]} 16... Kh8 {[%clk
0:02:17.6]} 17. Nf4 {[%clk 0:00:18.7]} 17... Bxh4 {[%clk 0:01:38.2]} 18. Ng6+
{[%clk 0:00:17.3]} 18... Nxg6 {[%clk 0:01:38.1]} 19. Qxg6 {[%clk 0:00:17.6]}
19... Ne4 {[%clk 0:01:37.2]} 20. Bxe4 {[%clk 0:00:16.8]} 20... Rxe4 {[%clk
0:01:36.8]} 21. Qxe4 {[%clk 0:00:15.9]} 21... Bf6 {[%clk 0:01:32.3]} 22. Rad1
{[%clk 0:00:15.5]} 22... Bd7 {[%clk 0:01:29.2]} 23. g4 {[%clk 0:00:15.2]} 23...
Qc8 {[%clk 0:01:24.4]} 24. h3 {[%clk 0:00:15]} 24... Qe8 {[%clk 0:01:21]} 25.
Qf3 {[%clk 0:00:13]} 25... Qg6 {[%clk 0:01:19.2]} 26. Rd2 {[%clk 0:00:09]} 26...
Re8 {[%clk 0:01:17.6]} 27. Rdf2 {[%clk 0:00:08.4]} 27... Bxd4 {[%clk 0:01:16.5]}
0-1

[Event "*** Titled Tuesday Blitz"]
[Site "Chess.com"]
[Date "2021.03.02"]
[Round "4"]
[White "KerryStead"]
[Black "Galiev_Azat"]
[Result "0-1"]
[WhiteElo "2012"]
[BlackElo "2379"]
[TimeControl "180+1"]
[EndTime "10:38:10 PST"]
[Termination "Galiev_Azat won on time"]

1. d4 {[%clk 0:01:02.4]} 1... Nf6 {[%clk 0:02:58]} 2. f3 {[%clk 0:01:02.1]} 2...
d5 {[%clk 0:02:56.7]} 3. e4 {[%clk 0:01:01.9]} 3... dxe4 {[%clk 0:02:56.4]} 4.
Nc3 {[%clk 0:01:01.3]} 4... exf3 {[%clk 0:02:53.4]} 5. Nxf3 {[%clk 0:01:02.2]}
5... Bg4 {[%clk 0:02:47.2]} 6. h3 {[%clk 0:01:02.3]} 6... Bh5 {[%clk 0:02:46.2]}
7. g4 {[%clk 0:01:02]} 7... Bg6 {[%clk 0:02:45.9]} 8. Ne5 {[%clk 0:01:02.9]}
8... Nbd7 {[%clk 0:02:38]} 9. Qf3 {[%clk 0:01:01.9]} 9... c6 {[%clk 0:02:29.4]}
10. Bg5 {[%clk 0:00:59.5]} 10... e6 {[%clk 0:02:16.2]} 11. O-O-O {[%clk
0:00:58.3]} 11... Be7 {[%clk 0:02:14.8]} 12. Nxg6 {[%clk 0:00:56.8]} 12... hxg6
{[%clk 0:02:14.1]} 13. Bd3 {[%clk 0:00:52.7]} 13... Qa5 {[%clk 0:02:12.8]} 14.
Bxf6 {[%clk 0:00:43.2]} 14... Nxf6 {[%clk 0:02:07.7]} 15. Kb1 {[%clk 0:00:41]}
15... O-O-O {[%clk 0:02:06.9]} 16. Ne2 {[%clk 0:00:36.1]} 16... Qd5 {[%clk
0:01:49.9]} 17. Qf2 {[%clk 0:00:26.4]} 17... g5 {[%clk 0:01:44.6]} 18. Ng3
{[%clk 0:00:20]} 18... Qxd4 {[%clk 0:01:39.3]} 19. Qg2 {[%clk 0:00:13.3]} 19...
Qb4 {[%clk 0:01:30.6]} 20. c3 {[%clk 0:00:11.6]} 20... Qb6 {[%clk 0:01:27.7]}
21. Rhe1 {[%clk 0:00:08.5]} 21... Nd5 {[%clk 0:01:27.4]} 22. Kc2 {[%clk
0:00:06.5]} 22... Nf4 {[%clk 0:01:25.4]} 23. Qf1 {[%clk 0:00:04.3]} 23... Rxh3
{[%clk 0:01:23.5]} 24. Ne4 {[%clk 0:00:01.6]} 24... Rh2+ {[%clk 0:01:19.6]} 0-1